fUST/lending_fUST_20240701
["ID","MTS","AMOUNT","RATE_DAILY","PERIOD"]
[330771290,1719768642066,-500.0,0.00015067,2]
[330771291,1719768642076,-1421.12,0.00015067,2]
[330771292,1719768642086,-500.0,0.00015067,2]
[330771293,1719768642096,-224.10716711,0.00015067,2]
[330771294,1719768642323,-275.89283289,0.00015067,2]
[330771295,1719768642333,-1150.41,0.00015067,2]
[330771296,1719768642343,-1821.55233281,0.00015067,2]
[330771297,1719768642368,-118.43766719,0.00015067,2]
[330771298,1719768642379,-463.9798712,0.00015067,2]
[330771299,1719768642392,-54.7501288,0.00015067,2]
[330771300,1719768642402,-501.99,0.00015067,2]
[330771301,1719768642412,-667.39,0.00015067,2]
[330771302,1719768642422,-508.76,0.00015067,2]
[330771303,1719768642432,-500.0,0.00015067,2]
[330771304,1719768642442,-500.0,0.00015067,2]
[330771305,1719768642452,-500.0,0.00015067,2]
[330771306,1719768642463,-500.0,0.00015067,2]
[330771307,1719768642473,-537.66,0.00015067,2]
[330771308,1719768642483,-500.0,0.00015068,2]
[330771309,1719768642494,-500.0,0.00015068,2]
[330771310,1719768642504,-500.0,0.00015068,2]
[330771311,1719768642514,-500.0,0.00015068,2]
[330771313,1719768642524,-500.0,0.00015068,2]
[330771315,1719768642534,-500.0,0.00015068,2]
[330771316,1719768642544,-500.0,0.00015068,2]
[330771317,1719768642554,-3164.22261908,0.00015068,2]
[330771328,1719768642680,-311.20545213,0.00015065,2]
[330771381,1719768643542,-4250.73654338,0.00015065,2]
[330771388,1719768646194,-520.430295,0.00015064,2]
[330771389,1719768646206,-756.059705,0.00015064,2]
[330771390,1719768646218,-3323.79060408,0.00015065,2]
[330771391,1719768646229,-615.77878989,0.00015065,2]
[330771392,1719768646241,-1294.43433178,0.00015065,2]
[330771395,1719768713032,523.56066402,0.00014999,2]
[330771396,1719768729916,221.35002266,0.00014966,2]
[330771397,1719768846019,212.62,0.00010959,2]
[330771417,1719769035035,186.67873937,0.00013283,2]
[330771420,1719769070087,11121.90890306,0.00013283,2]
[330771421,1719769077547,220.5597877,0.00014963,2]
[330771429,1719769162095,24900.0,0.00014064,2]
[330771436,1719769402121,285.06500493,0.00014798,2]
[330771437,1719769407715,5286.34479944,0.00014907,2]
[330771439,1719769513633,661.12832609,0.00014999,2]
[330771444,1719769592064,2511.40058365,0.00014999,2]
[330771445,1719769612217,5486.958777,0.00015,2]
[330771446,1719769653289,192.98981422,0.00014961,2]
[330771447,1719769655049,5037.013877,0.00015,2]
[330771453,1719769759461,-300.0,0.00015057,2]
[330771454,1719769759493,-300.0,0.00015057,2]
[330771455,1719769759530,-67.6836443,0.00015058,2]
[330771456,1719769759566,-667.6836443,0.00015058,2]
[330771457,1719769759613,-667.6836443,0.00015058,2]
[330771462,1719769784417,-707.74466296,0.00015058,2]
[330771463,1719769784488,-545.00440414,0.00015058,2]
[330771464,1719769784522,-162.74025882,0.00015058,2]
[330771465,1719769784563,-337.25974118,0.00015058,2]
[330771466,1719769784595,-370.48492178,0.00015058,2]
[330771469,1719769809471,-300.0,0.00015057,2]
[330771470,1719769809505,-300.0,0.00015057,2]
[330771471,1719769809539,-150.20934273,0.00015058,2]
[330771472,1719769809579,-316.48573549,0.00015058,2]
[330771473,1719769809611,-433.72360724,0.00015058,2]
[330771474,1719769809711,-507.96800699,0.00015058,2]
[330771788,1719769838275,-1309.59838577,0.00015058,2]
[330771789,1719769838285,-500.0,0.00015058,2]
[330771790,1719769838294,-20993.62,0.00015058,2]
[330771791,1719769838303,-2976.54,0.00015058,2]
[330771792,1719769838311,-5263.52,0.00015058,2]
[330771793,1719769838320,-2342.16,0.00015058,2]
[330771794,1719769838329,-1272.64,0.00015058,2]
[330771795,1719769838338,-68455.07292665,0.00015059,2]
[330771796,1719769838347,-248119.25980807,0.00015059,2]
[330771797,1719769838391,-433.23403452,0.00015059,2]
[330771798,1719769838403,-333.95878176,0.00015059,2]
[330771799,1719769838418,-6612.10992134,0.00015059,2]
[330771828,1719769840658,-15504.40148692,0.00015059,2]
[330771829,1719769840670,-999.9933705,0.00015059,2]
[330771830,1719769840682,-6074.19153409,0.00015059,2]
[330771831,1719769840766,-249.993024,0.00015059,2]
[330771856,1719769843476,-500.0,0.00015058,2]
[330771857,1719769843486,-4834.53346363,0.00015059,2]
[330771858,1719769843495,-1264.45520392,0.00015061,2]
[330771859,1719769843505,-500.0,0.00015061,2]
[330771860,1719769843515,-500.0,0.00015061,2]
[330771861,1719769843525,-500.0,0.00015061,2]
[330771862,1719769843539,-257.25285866,0.00015061,2]
[330771863,1719769843549,-4877.15296303,0.00015061,2]
[330771875,1719769846320,-8913.42127488,0.00015061,2]
[330771876,1719769846333,-6104.30576209,0.00015061,2]
[330771878,1719769846342,-500.0,0.00015061,2]
[330771880,1719769846351,-609.91,0.00015061,2]
[330771881,1719769846360,-847.73,0.00015061,2]
[330771883,1719769846369,-948.49,0.00015061,2]
[330771884,1719769846378,-1000.0,0.00015061,2]
[330771885,1719769846388,-500.0,0.00015061,2]
[330771886,1719769846397,-251.20458546,0.00015061,2]
[330771887,1719769846421,-248.79541454,0.00015061,2]
[330771889,1719769846432,-567.65,0.00015061,2]
[330771890,1719769846442,-3765.66,0.00015061,2]
[330771891,1719769846451,-500.0,0.00015061,2]
[330771892,1719769846460,-500.0,0.00015061,2]
[330771893,1719769846470,-500.0,0.00015061,2]
[330771894,1719769846478,-500.0,0.00015061,2]
[330771895,1719769846487,-5632.09,0.00015061,2]
[330771896,1719769846497,-8278.52,0.00015061,2]
[330771897,1719769846506,-500.0,0.00015061,2]
[330771898,1719769846516,-2868.91,0.00015061,2]
[330771899,1719769846529,-935.2,0.00015061,2]
[330771900,1719769846539,-553.58,0.00015061,2]
[330771901,1719769846549,-500.0,0.00015061,2]
[330771902,1719769846559,-2753.64,0.00015061,2]
[330771903,1719769846570,-505.41,0.00015061,2]
[330771904,1719769846579,-500.0,0.00015061,2]
[330771905,1719769846588,-500.0,0.00015061,2]
[330771906,1719769846597,-2117.95,0.00015061,2]
[330771907,1719769846609,-625.33754958,0.00015061,2]
[330771908,1719769846619,-7328.2,0.00015061,2]
[330771909,1719769846629,-500.0,0.00015061,2]
[330771910,1719769846638,-941.58,0.00015061,2]
[330771911,1719769846650,-527.89155646,0.00015061,2]
[330771912,1719769846659,-1302.09,0.00015061,2]
[330771913,1719769846668,-500.0,0.00015061,2]
[330771914,1719769846678,-500.0,0.00015061,2]
[330771915,1719769846686,-701.52,0.00015061,2]
[330771916,1719769846697,-500.0,0.00015061,2]
[330771917,1719769846706,-500.0,0.00015061,2]
[330771918,1719769846716,-784.6,0.00015061,2]
[330771919,1719769846725,-923.58,0.00015061,2]
[330771920,1719769846734,-500.0,0.00015061,2]
[330771921,1719769846744,-500.0,0.00015061,2]
[330771922,1719769846753,-633.87,0.00015061,2]
[330771923,1719769846763,-626.78,0.00015061,2]
[330771924,1719769846773,-500.0,0.00015061,2]
[330771925,1719769846783,-489.78642319,0.00015061,2]
[330771926,1719769846794,-2172.09,0.00015062,2]
[330771927,1719769846803,-500.0,0.00015062,2]
[330771928,1719769846812,-500.0,0.00015062,2]
[330771929,1719769846822,-500.0,0.00015062,2]
[330771930,1719769846831,-500.0,0.00015062,2]
[330771931,1719769846840,-2734.82,0.00015062,2]
[330771932,1719769846851,-500.0,0.00015062,2]
[330771933,1719769846860,-547.62,0.00015062,2]
[330771934,1719769846869,-500.0,0.00015062,2]
[330771935,1719769846880,-500.0,0.00015062,2]
[330771936,1719769846889,-188.09167626,0.00015062,2]
[330771937,1719769846898,-500.0,0.00015062,2]
[330771938,1719769846907,-560.34,0.00015062,2]
[330771939,1719769846917,-2447.3,0.00015062,2]
[330771940,1719769846926,-2886.57,0.00015062,2]
[330771941,1719769846935,-759.97,0.00015062,2]
[330771942,1719769846945,-500.0,0.00015062,2]
[330771943,1719769846954,-707.79,0.00015062,2]
[330771944,1719769846963,-946.54,0.00015062,2]
[330771945,1719769846973,-1631.53,0.00015062,2]
[330771946,1719769846983,-500.0,0.00015062,2]
[330771947,1719769846992,-500.0,0.00015062,2]
[330771948,1719769847001,-500.0,0.00015062,2]
[330771949,1719769847010,-500.0,0.00015062,2]
[330771950,1719769847019,-500.0,0.00015062,2]
[330771951,1719769847029,-1525.53,0.00015062,2]
[330771952,1719769847040,-500.0,0.00015062,2]
[330771953,1719769847130,-734.86,0.00015062,2]
[330771954,1719769847155,-500.0,0.00015062,2]
[330771955,1719769847165,-550.02769491,0.00015062,2]
[330771956,1719769847175,-965.45,0.00015062,2]
[330771957,1719769847184,-517.27090328,0.00015062,2]
[330771958,1719769847195,-774.43,0.00015062,2]
[330771959,1719769847204,-552.78,0.00015062,2]
[330771960,1719769847213,-239.08603204,0.00015062,2]
[330771961,1719769847223,-666.21,0.00015062,2]
[330771962,1719769847233,-571.12,0.00015062,2]
[330771963,1719769847243,-500.0,0.00015062,2]
[330771964,1719769847253,-500.0,0.00015062,2]
[330771965,1719769847262,-500.0,0.00015062,2]
[330771966,1719769847272,-510.23074069,0.00015062,2]
[330771967,1719769847281,-500.0,0.00015062,2]
[330771968,1719769847291,-500.0,0.00015062,2]
[330771969,1719769847300,-500.0,0.00015062,2]
[330771970,1719769847309,-852.45,0.00015062,2]
[330771971,1719769847318,-950.91,0.00015062,2]
[330771972,1719769847327,-500.0,0.00015062,2]
[330771973,1719769847336,-1278.8,0.00015062,2]
[330771974,1719769847345,-2035.28,0.00015062,2]
[330771975,1719769847355,-500.0,0.00015062,2]
[330771976,1719769847365,-500.0,0.00015062,2]
[330771977,1719769847374,-12536.12,0.00015062,2]
[330771978,1719769847383,-1867.68,0.00015062,2]
[330771979,1719769847392,-500.0,0.00015062,2]
[330771980,1719769847402,-500.0,0.00015062,2]
[330771981,1719769847411,-4468.65,0.00015062,2]
[330771982,1719769847421,-837.5,0.00015062,2]
[330771983,1719769847430,-937.43,0.00015062,2]
[330771984,1719769847439,-506.75248737,0.00015062,2]
[330771985,1719769847450,-500.0,0.00015062,2]
[330771986,1719769847459,-500.0,0.00015062,2]
[330771987,1719769847468,-899.44,0.00015062,2]
[330771988,1719769847478,-527.5,0.00015062,2]
[330771989,1719769847487,-500.0,0.00015062,2]
[330771990,1719769847497,-1655.71,0.00015062,2]
[330771991,1719769847506,-500.0,0.00015062,2]
[330771992,1719769847515,-1106.66,0.00015062,2]
[330771993,1719769847525,-1910.7,0.00015062,2]
[330771994,1719769847538,-1076.11,0.00015062,2]
[330771995,1719769847547,-506.23553151,0.00015062,2]
[330771996,1719769847556,-500.0,0.00015062,2]
[330771997,1719769847565,-500.0,0.00015062,2]
[330771998,1719769847575,-628.91,0.00015062,2]
[330771999,1719769847585,-654.73,0.00015062,2]
[330772000,1719769847594,-2170.31,0.00015062,2]
[330772001,1719769847604,-575.42,0.00015062,2]
[330772002,1719769847613,-448.22,0.00015062,2]
[330772003,1719769847623,-226.31530429,0.00015062,2]
[330772004,1719769847632,-478.73257654,0.00015062,2]
[330772005,1719769847642,-501.67,0.00015062,2]
[330772006,1719769847651,-500.0,0.00015062,2]
[330772007,1719769847661,-500.0,0.00015062,2]
[330772008,1719769847670,-500.0,0.00015062,2]
[330772009,1719769847680,-500.0,0.00015062,2]
[330772010,1719769847690,-500.0,0.00015062,2]
[330772011,1719769847700,-500.0,0.00015062,2]
[330772012,1719769847710,-500.0,0.00015062,2]
[330772013,1719769847720,-500.0,0.00015062,2]
[330772014,1719769847729,-14798.78,0.00015062,2]
[330772015,1719769847738,-500.0,0.00015062,2]
[330772016,1719769847748,-1260.68,0.00015062,2]
[330772017,1719769847757,-500.0,0.00015063,2]
[330772018,1719769847767,-513.81,0.00015063,2]
[330772019,1719769847776,-500.0,0.00015063,2]
[330772020,1719769847786,-500.0,0.00015063,2]
[330772021,1719769847796,-527.38731138,0.00015063,2]
[330772022,1719769847805,-500.0,0.00015063,2]
[330772023,1719769847814,-475.0,0.00015063,2]
[330772024,1719769847823,-500.0,0.00015063,2]
[330772025,1719769847832,-500.0,0.00015063,2]
[330772026,1719769847841,-544.85,0.00015063,2]
[330772027,1719769847850,-500.0,0.00015063,2]
[330772028,1719769847860,-500.0,0.00015063,2]
[330772029,1719769847869,-736.9,0.00015063,2]
[330772030,1719769847879,-643.76,0.00015063,2]
[330772031,1719769847888,-500.0,0.00015063,2]
[330772032,1719769847898,-516.9,0.00015063,2]
[330772033,1719769847907,-500.0,0.00015063,2]
[330772034,1719769847916,-500.0,0.00015063,2]
[330772035,1719769847926,-914.8,0.00015063,2]
[330772036,1719769847935,-500.0,0.00015063,2]
[330772037,1719769847946,-500.0,0.00015063,2]
[330772038,1719769847955,-626.36,0.00015063,2]
[330772039,1719769847964,-545.83,0.00015063,2]
[330772040,1719769847974,-500.0,0.00015063,2]
[330772041,1719769847983,-500.0,0.00015063,2]
[330772042,1719769847993,-500.0,0.00015063,2]
[330772043,1719769848002,-500.0,0.00015063,2]
[330772044,1719769848011,-500.0,0.00015063,2]
[330772045,1719769848020,-500.0,0.00015063,2]
[330772046,1719769848031,-505.54,0.00015063,2]
[330772047,1719769848040,-500.0,0.00015063,2]
[330772048,1719769848049,-500.0,0.00015063,2]
[330772049,1719769848059,-632.68,0.00015063,2]
[330772050,1719769848069,-696.25,0.00015063,2]
[330772051,1719769848079,-500.0,0.00015063,2]
[330772052,1719769848089,-305.09834405,0.00015063,2]
[330772053,1719769848099,-500.0,0.00015063,2]
[330772054,1719769848108,-500.0,0.00015063,2]
[330772055,1719769848118,-500.0,0.00015063,2]
[330772056,1719769848127,-500.0,0.00015063,2]
[330772057,1719769848136,-817.46,0.00015063,2]
[330772058,1719769848147,-1267.68,0.00015063,2]
[330772059,1719769848157,-500.0,0.00015063,2]
[330772060,1719769848167,-500.0,0.00015063,2]
[330772061,1719769848178,-500.0,0.00015063,2]
[330772062,1719769848188,-500.0,0.00015063,2]
[330772063,1719769848199,-500.0,0.00015063,2]
[330772064,1719769848207,-500.0,0.00015063,2]
[330772065,1719769848216,-500.0,0.00015063,2]
[330772066,1719769848226,-1047.03,0.00015063,2]
[330772067,1719769848235,-500.0,0.00015063,2]
[330772068,1719769848244,-500.0,0.00015063,2]
[330772069,1719769848253,-500.0,0.00015063,2]
[330772070,1719769848262,-543.03204284,0.00015063,2]
[330772071,1719769848272,-500.0,0.00015063,2]
[330772072,1719769848280,-500.0,0.00015063,2]
[330772073,1719769848290,-500.0,0.00015063,2]
[330772074,1719769848299,-518.62875156,0.00015063,2]
[330772075,1719769848308,-395.96833095,0.00015063,2]
[330772076,1719769848317,-500.0,0.00015063,2]
[330772077,1719769848326,-500.0,0.00015063,2]
[330772078,1719769848335,-500.0,0.00015063,2]
[330772079,1719769848345,-500.0,0.00015063,2]
[330772080,1719769848354,-1104.17,0.00015063,2]
[330772081,1719769848364,-500.0,0.00015063,2]
[330772082,1719769848373,-500.0,0.00015063,2]
[330772083,1719769848382,-500.0,0.00015063,2]
[330772084,1719769848393,-500.0,0.00015063,2]
[330772085,1719769848402,-500.0,0.00015063,2]
[330772086,1719769848414,-155.0,0.00015063,2]
[330772087,1719769848424,-352.06217992,0.00015063,2]
[330772088,1719769848435,-500.0,0.00015063,2]
[330772089,1719769848446,-500.0,0.00015063,2]
[330772090,1719769848456,-500.0,0.00015063,2]
[330772091,1719769848466,-500.0,0.00015063,2]
[330772092,1719769848476,-510.46,0.00015063,2]
[330772093,1719769848486,-500.0,0.00015063,2]
[330772094,1719769848578,-604.38,0.00015063,2]
[330772095,1719769848588,-504.24601484,0.00015063,2]
[330772096,1719769848597,-667.09,0.00015063,2]
[330772097,1719769848607,-500.0,0.00015063,2]
[330772098,1719769848616,-502.49076072,0.00015063,2]
[330772099,1719769848626,-500.0,0.00015063,2]
[330772100,1719769848635,-500.0,0.00015063,2]
[330772101,1719769848644,-500.0,0.00015063,2]
[330772102,1719769848654,-500.0,0.00015063,2]
[330772103,1719769848663,-635.80447038,0.00015063,2]
[330772104,1719769848673,-802.98,0.00015063,2]
[330772105,1719769848682,-500.0,0.00015063,2]
[330772106,1719769848693,-500.0,0.00015063,2]
[330772107,1719769848703,-565.48491466,0.00015063,2]
[330772108,1719769848711,-1355.07,0.00015063,2]
[330772109,1719769848720,-500.0,0.00015063,2]
[330772110,1719769848734,-500.0,0.00015063,2]
[330772111,1719769848743,-500.0,0.00015063,2]
[330772112,1719769848753,-500.0,0.00015063,2]
[330772113,1719769848762,-2470.05,0.00015063,2]
[330772114,1719769848772,-1188.96,0.00015063,2]
[330772115,1719769848781,-500.0,0.00015063,2]
[330772116,1719769848790,-500.0,0.00015063,2]
[330772117,1719769848799,-500.0,0.00015063,2]
[330772118,1719769848808,-500.0,0.00015063,2]
[330772119,1719769848817,-500.0,0.00015063,2]
[330772120,1719769848827,-627.36491239,0.00015063,2]
[330772121,1719769848836,-2777.63,0.00015063,2]
[330772122,1719769848845,-500.0,0.00015063,2]
[330772123,1719769848855,-559.10364024,0.00015063,2]
[330772124,1719769848864,-500.0,0.00015063,2]
[330772125,1719769848873,-500.0,0.00015063,2]
[330772126,1719769848882,-500.0,0.00015063,2]
[330772127,1719769848891,-544.46695782,0.00015063,2]
[330772128,1719769848900,-500.0,0.00015063,2]
[330772129,1719769848909,-500.0,0.00015063,2]
[330772130,1719769848918,-500.0,0.00015063,2]
[330772131,1719769848927,-500.0,0.00015063,2]
[330772132,1719769848937,-500.0,0.00015063,2]
[330772133,1719769848950,-618.28,0.00015063,2]
[330772134,1719769848959,-500.0,0.00015063,2]
[330772135,1719769848968,-500.0,0.00015063,2]
[330772136,1719769848977,-500.0,0.00015063,2]
[330772137,1719769848987,-500.0,0.00015063,2]
[330772138,1719769848995,-500.0,0.00015063,2]
[330772139,1719769849004,-500.23,0.00015063,2]
[330772140,1719769849014,-500.0,0.00015063,2]
[330772141,1719769849022,-370.21868496,0.00015063,2]
[330772142,1719769849031,-895.87,0.00015063,2]
[330772143,1719769849040,-576.88372015,0.00015063,2]
[330772144,1719769849049,-1529.15,0.00015063,2]
[330772145,1719769849058,-1786.0,0.00015063,2]
[330772146,1719769849067,-500.0,0.00015063,2]
[330772147,1719769849076,-518.62,0.00015063,2]
[330772148,1719769849085,-500.0,0.00015063,2]
[330772149,1719769849094,-513.11733545,0.00015063,2]
[330772150,1719769849104,-718.37,0.00015063,2]
[330772151,1719769849113,-500.0,0.00015063,2]
[330772152,1719769849122,-567.80483962,0.00015063,2]
[330772153,1719769849131,-720.14,0.00015063,2]
[330772154,1719769849140,-508.97045269,0.00015063,2]
[330772155,1719769849151,-2145.3,0.00015063,2]
[330772156,1719769849160,-503.35073606,0.00015063,2]
[330772157,1719769849169,-500.0,0.00015063,2]
[330772158,1719769849179,-500.0,0.00015063,2]
[330772159,1719769849188,-562.15,0.00015063,2]
[330772160,1719769849199,-500.0,0.00015063,2]
[330772161,1719769849209,-500.0,0.00015063,2]
[330772162,1719769849218,-500.0,0.00015063,2]
[330772163,1719769849227,-606.33426934,0.00015063,2]
[330772164,1719769849236,-500.0,0.00015063,2]
[330772165,1719769849246,-500.0,0.00015063,2]
[330772166,1719769849255,-500.0,0.00015063,2]
[330772167,1719769849264,-500.0,0.00015063,2]
[330772168,1719769849273,-500.0,0.00015063,2]
[330772169,1719769849282,-500.0,0.00015063,2]
[330772170,1719769849292,-500.0,0.00015063,2]
[330772171,1719769849301,-500.0,0.00015063,2]
[330772172,1719769849311,-558.94370185,0.00015063,2]
[330772173,1719769849320,-719.02,0.00015063,2]
[330772174,1719769849329,-500.0,0.00015063,2]
[330772175,1719769849339,-1115.46,0.00015063,2]
[330772176,1719769849348,-500.0,0.00015063,2]
[330772177,1719769849358,-1064.32,0.00015063,2]
[330772178,1719769849367,-500.0,0.00015063,2]
[330772179,1719769849377,-500.0,0.00015063,2]
[330772180,1719769849386,-500.0,0.00015063,2]
[330772181,1719769849396,-500.0,0.00015063,2]
[330772182,1719769849406,-500.0,0.00015063,2]
[330772183,1719769849415,-500.0,0.00015063,2]
[330772184,1719769849425,-1421.12,0.00015063,2]
[330772185,1719769849435,-500.0,0.00015063,2]
[330772186,1719769849446,-512.88,0.00015063,2]
[330772187,1719769849455,-500.0,0.00015063,2]
[330772188,1719769849464,-1102.47,0.00015063,2]
[330772189,1719769849474,-500.0,0.00015063,2]
[330772190,1719769849483,-500.0,0.00015063,2]
[330772191,1719769849492,-500.0,0.00015063,2]
[330772192,1719769849501,-500.0,0.00015063,2]
[330772193,1719769849510,-1859.16,0.00015063,2]
[330772194,1719769849519,-500.0,0.00015063,2]
[330772195,1719769849531,-500.0,0.00015063,2]
[330772196,1719769849542,-500.0,0.00015063,2]
[330772197,1719769849551,-802.27,0.00015063,2]
[330772198,1719769849560,-2004.13,0.00015063,2]
[330772199,1719769849569,-500.0,0.00015063,2]
[330772200,1719769849579,-500.0,0.00015063,2]
[330772201,1719769849588,-605.53090476,0.00015063,2]
[330772202,1719769849597,-639.59,0.00015063,2]
[330772203,1719769849606,-500.0,0.00015063,2]
[330772204,1719769849617,-500.0,0.00015063,2]
[330772205,1719769849627,-1402.02,0.00015063,2]
[330772206,1719769849637,-500.0,0.00015063,2]
[330772207,1719769849646,-151.0,0.00015063,2]
[330772208,1719769849655,-500.0,0.00015063,2]
[330772209,1719769849664,-500.0,0.00015063,2]
[330772210,1719769849674,-151.0,0.00015063,2]
[330772211,1719769849683,-151.0,0.00015063,2]
[330772212,1719769849695,-500.0,0.00015064,2]
[330772213,1719769849704,-500.0,0.00015064,2]
[330772214,1719769849713,-500.0,0.00015065,2]
[330772215,1719769849722,-500.0,0.00015065,2]
[330772216,1719769849731,-500.0,0.00015065,2]
[330772217,1719769849740,-520.88959233,0.00015065,2]
[330772218,1719769849750,-500.0,0.00015065,2]
[330772219,1719769849759,-500.0,0.00015065,2]
[330772220,1719769849768,-515.26,0.00015065,2]
[330772221,1719769849778,-500.0,0.00015065,2]
[330772222,1719769849787,-500.0,0.00015065,2]
[330772223,1719769849871,-500.0,0.00015065,2]
[330772224,1719769849888,-500.0,0.00015065,2]
[330772225,1719769849898,-500.0,0.00015065,2]
[330772226,1719769849907,-19416.71,0.00015065,2]
[330772227,1719769849917,-649.07,0.00015065,2]
[330772228,1719769849926,-151.0,0.00015065,2]
[330772229,1719769849935,-151.0,0.00015065,2]
[330772230,1719769849944,-151.0,0.00015065,2]
[330772231,1719769849953,-151.0,0.00015065,2]
[330772232,1719769849963,-332.725208,0.00015065,2]
[330772233,1719769849972,-332.725208,0.00015065,2]
[330772234,1719769849981,-447.97188149,0.00015065,2]
[330772235,1719769849991,-151.0,0.00015065,2]
[330772236,1719769850000,-160.249463,0.00015065,2]
[330772237,1719769850010,-160.249463,0.00015065,2]
[330772238,1719769850019,-677.78,0.00015065,2]
[330772239,1719769850028,-354.518831,0.00015065,2]
[330772240,1719769850037,-354.518831,0.00015065,2]
[330772241,1719769850047,-624.65,0.00015065,2]
[330772242,1719769850057,-151.0,0.00015066,2]
[330772243,1719769850068,-151.0,0.00015066,2]
[330772244,1719769850078,-155.282739,0.00015066,2]
[330772245,1719769850088,-155.282739,0.00015066,2]
[330772246,1719769850098,-500.0,0.00015066,2]
[330772247,1719769850109,-151.0,0.00015066,2]
[330772248,1719769850119,-151.0,0.00015066,2]
[330772249,1719769850127,-151.0,0.00015066,2]
[330772250,1719769850136,-2656.83,0.00015067,2]
[330772251,1719769850145,-10171.51,0.00015067,2]
[330772252,1719769850156,-2191.63,0.00015067,2]
[330772253,1719769850165,-500.0,0.00015067,2]
[330772254,1719769850174,-1610.58,0.00015067,2]
[330772255,1719769850183,-1706.84,0.00015067,2]
[330772256,1719769850193,-17977.42,0.00015067,2]
[330772257,1719769850203,-500.0,0.00015067,2]
[330772258,1719769850212,-151.0,0.00015068,2]
[330772259,1719769850220,-151.0,0.00015068,2]
[330772260,1719769850229,-354.014553,0.00015068,2]
[330772261,1719769850239,-354.014553,0.00015068,2]
[330772262,1719769850248,-1011.566182,0.00015068,2]
[330772263,1719769850257,-1011.566182,0.00015068,2]
[330772264,1719769850266,-203.708382,0.00015068,2]
[330772265,1719769850275,-203.708382,0.00015068,2]
[330772266,1719769850284,-151.0,0.00015068,2]
[330772267,1719769850293,-151.0,0.00015068,2]
[330772268,1719769850303,-155.282739,0.00015068,2]
[330772269,1719769850312,-155.282739,0.00015068,2]
[330772270,1719769850321,-153.0,0.00015376,2]
[330772271,1719769850330,-153.0,0.00015376,2]
[330772272,1719769850340,-153.0,0.00015376,2]
[330772273,1719769850350,-153.0,0.00015378,2]
[330772274,1719769850359,-153.0,0.00015378,2]
[330772275,1719769850369,-153.0,0.00015378,2]
[330772276,1719769850378,-153.0,0.00015382,2]
[330772277,1719769850387,-153.0,0.00015382,2]
[330772278,1719769850396,-153.0,0.00015382,2]
[330772279,1719769850406,-153.0,0.00015382,2]
[330772280,1719769850415,-153.0,0.00015382,2]
[330772281,1719769850424,-153.0,0.00015382,2]
[330772282,1719769850433,-153.0,0.00015382,2]
[330772283,1719769850444,-153.0,0.00015382,2]
[330772284,1719769850454,-4999.97206,0.00015431,2]
[330772285,1719769850463,-2000.0,0.0001551,2]
[330772286,1719769850472,-2655.8,0.00015606,2]
[330772287,1719769850482,-837.18,0.00015606,2]
[330772288,1719769850491,-2251.29,0.00015606,2]
[330772289,1719769850500,-500.0,0.00015606,2]
[330772290,1719769850510,-20993.62,0.00015606,2]
[330772291,1719769850519,-2976.54,0.00015606,2]